Workbook

Sheet Jan2024MultifamilyCompost
B1: Multifamily Compost Service Calculator
B4: Purpose: Calculate the number and type of containers suggested to meet the minimum compost capacity of 1 gallon per unit per week at your property. You are required to offer your residents and employees convenient access to compost containers within 25 feet of all landfill trash containers. | P4: 1 | Q4: required compost gallons/unit/week
B7: Instructions:
B8: 1. Enter total number of dwelling units in the yellow box.
B9: 2. Enter the number of waste collection stations in the blue box.
B10: 3. The suggested number and size of compost containers will display in the green section.
B12: 1. Enter number of dwelling units: | G12: 20
B13: 2. Enter number of waste collection locations: | G13: 5 | P13: 4 | Q13: compaction ratio
C15: Suggested Size and Number of Containers: | G15: 0.5 | H15: 1
C16: You can use a combination of carts, drums, buckets and/or dumpster containers, as offered by your hauler. Work with your hauler to find a combination that works best for your property. | R16: 100000 | S16: maximum recommended compost containers
C17: Container | E17: Recommended # of Containers | K17: actual gallons | L17: actual gallons/unit/week | P17: 100000 | Q17: maximum recommended gallons/units/week of compost
D18: 1 | E18: 1
D19: 1 time per week | E19: 1 time per week
B20: 5 | C20: 5 gallon bucket | E20: =IF(OR(L20>$P$20,ROUNDUP($P$4*$G$12/E$18/$B20,0)>$R$16),"--",MAX(ROUNDUP($P$4*$G$12/E$18/$B20,0),$G$13)) -> 5 | K20: =IF(ROUNDUP($P$4*$G$12/E$18/$B20,0)>$R$16,"--",MAX(ROUNDUP($P$4*$G$12/E$18/$B20,0),$G$13))*B20*$E$18 -> 25 | L20: =K20/$G$12 -> 1.25 | P20: 5 | Q20: maximum recommended gallons/units/week of compost
B21: 36 | C21: 36 gallon cart | E21: =IF(OR(L21>$P$20,ROUNDUP($P$4*$G$12/E$18/$B21,0)>$R$16),"--",MAX(ROUNDUP($P$4*$G$12/E$18/$B21,0),$G$13)) -> -- | K21: =IF(ROUNDUP($P$4*$G$12/E$18/$B21,0)>$R$16,"--",MAX(ROUNDUP($P$4*$G$12/E$18/$B21,0),$G$13))*B21*$E$18 -> 180 | L21: =K21/$G$12 -> 9
B22: 55 | C22: 55 gallon drum | E22: =IF(OR(L22>$P$20,ROUNDUP($P$4*$G$12/E$18/$B22,0)>$R$16),"--",MAX(ROUNDUP($P$4*$G$12/E$18/$B22,0),$G$13)) -> -- | K22: =IF(ROUNDUP($P$4*$G$12/E$18/$B22,0)>$R$16,"--",MAX(ROUNDUP($P$4*$G$12/E$18/$B22,0),$G$13))*B22*$E$18 -> 275 | L22: 13.75
B23: 64 | C23: 64 gallon cart | E23: =IF(OR(L23>$P$20,ROUNDUP($P$4*$G$12/E$18/$B23,0)>$R$16),"--",MAX(ROUNDUP($P$4*$G$12/E$18/$B23,0),$G$13)) -> -- | K23: =IF(ROUNDUP($P$4*$G$12/E$18/$B23,0)>$R$16,"--",MAX(ROUNDUP($P$4*$G$12/E$18/$B23,0),$G$13))*B23*$E$18 -> 320 | L23: 16
B24: 96 | C24: 96 gallon cart | E24: =IF(OR(L24>$P$20,ROUNDUP($P$4*$G$12/E$18/$B24,0)>$R$16),"--",MAX(ROUNDUP($P$4*$G$12/E$18/$B24,0),$G$13)) -> -- | K24: =IF(ROUNDUP($P$4*$G$12/E$18/$B24,0)>$R$16,"--",MAX(ROUNDUP($P$4*$G$12/E$18/$B24,0),$G$13))*B24*$E$18 -> 480 | L24: 24
B25: 2 | C25: 2 cu yd dumpster | E25: =IF(OR(L25>$P$20,(E$18*201.974*($B25))/$G$12>$P$17,ROUNDUP($P$4*$G$12/E$18/201.974/($B25),0)>$R$16),"--",MAX(ROUNDUP($P$4*$G$12/E$18/201.974/($B25),0),$G$13)) -> -- | J25: 201.974 | K25: =MAX(ROUNDUP($P$4*$G$12/E$18/201.974/($B25),0),$G$13)*B25*J25 -> 2019.74 | L25: =K25/$G$12 -> 100.987
B26: 3 | C26: 3 cu yd dumpster | E26: =IF(OR(L26>$P$20,(E$18*201.974*($B26))/$G$12>$P$17,ROUNDUP($P$4*$G$12/E$18/201.974/($B26),0)>$R$16),"--",MAX(ROUNDUP($P$4*$G$12/E$18/201.974/($B26),0),$G$13)) -> -- | J26: 201.974 | K26: =MAX(ROUNDUP($P$4*$G$12/E$18/201.974/($B26),0),$G$13)*B26*J26 -> 3029.61 | L26: =K26/$G$12 -> 151.4805
B27: 4 | C27: 4 cu yd dumpster | E27: =IF(OR(L27>$P$20,(E$18*201.974*($B27))/$G$12>$P$17,ROUNDUP($P$4*$G$12/E$18/201.974/($B27),0)>$R$16),"--",MAX(ROUNDUP($P$4*$G$12/E$18/201.974/($B27),0),$G$13)) -> -- | J27: 201.974 | K27: =MAX(ROUNDUP($P$4*$G$12/E$18/201.974/($B27),0),$G$13)*B27*J27 -> 4039.48 | L27: 201.974
B28: 6 | C28: 6 cu yd dumpster | E28: =IF(OR(L28>$P$20,(E$18*201.974*($B28))/$G$12>$P$17,ROUNDUP($P$4*$G$12/E$18/201.974/($B28),0)>$R$16),"--",MAX(ROUNDUP($P$4*$G$12/E$18/201.974/($B28),0),$G$13)) -> -- | J28: 201.974 | K28: =MAX(ROUNDUP($P$4*$G$12/E$18/201.974/($B28),0),$G$13)*B28*J28 -> 6059.22 | L28: 302.961
B29: 20 | C29: 20 cu yd compactor | E29: =IF(OR(L29>$P$20,(1*201.974*($B29*$P$13))/$G$12>$P$17,ROUNDUP($P$4*$G$12/1/201.974/($B29*$P$13),0)>$R$16),"--",MAX(ROUNDUP($P$4*$G$12/1/201.974/($B29*$P$13),0),$G$13)) -> -- | J29: 201.974 | K29: =MAX(ROUNDUP($P$4*$G$12/1/201.974/($B29*$P$13),0),$G$13)*B29*$P$13*J29 -> 80789.6 | L29: 4039.48
B30: 30 | C30: 30 cu yd compactor | E30: =IF(OR(L30>$P$20,(1*201.974*($B30*$P$13))/$G$12>$P$17,ROUNDUP($P$4*$G$12/1/201.974/($B30*$P$13),0)>$R$16),"--",MAX(ROUNDUP($P$4*$G$12/1/201.974/($B30*$P$13),0),$G$13)) -> -- | J30: 201.974 | K30: =MAX(ROUNDUP($P$4*$G$12/1/201.974/($B30*$P$13),0),$G$13)*B30*$P$13*J30 -> 121184.4 | L30: 6059.22
C32: What is a Waste Collection Station?
C33: A waste collection station is an area where residents and staff can dispose of their landfill trash. You are required to have access to compost and recycling within 25 feet of all landfill trash containers.
C35: - Examples include: External dumpsters, trash chutes and trash rooms.
C37: Do I need to pay for this many containers to be serviced?
C38: No, but you are required to offer compost and recycling collection at each waste station. This material can be emptied into a larger, outdoor container that is serviced by your hauler each week.
C42: These are suggestions for meeting the composting requirements. For questions: email CommercialRecycling@AustinTexas.gov

Sheet Sheet1
